Cogmind - Beta 9.2 @@@ ROGUE MODE // 2019.12.10 @ 14:39:00 Player: Cassie Rose Result: Destroyed by G-47 Trooper with Particle Gun Performance ------------- Evolutions (2) 1000 Regions Visited (3) 600 Robots Destroyed (36) 180 Value Destroyed (902) 902 Prototype IDs (1) 20 Alien Tech Used (0) 0 Bonus (0) 0 TOTAL SCORE: 2702 Bonus ------- None Cogmind --------- Core Integrity 0/550 Matter 300/300 Energy 100/100 System Corruption 0% Temperature Cool (9) Movement Core (100) Ox1 Location -8/Materials Parts ------- > --- POWER (2) -------- (None) > --- PROPULSION (3) --- (None) > --- UTILITY (4) ------ Signal Interpreter Improved Salvage Targeting Computer > --- WEAPON (2) ------- Powered Hammer Powered Hammer > --- INVENTORY (4) ---- Structural Scanner Arc Projector Arc Projector Arc Projector Peak State ------------ > --- POWER ------------ (None) > --- PROPULSION ------- (None) > --- UTILITY ---------- Improved Heat Sink Signal Interpreter Improved Salvage Targeting Computer Improved Light Armor Plating > --- WEAPON ----------- Powered Hammer Powered Hammer > --- INVENTORY -------- Structural Scanner Arc Projector Arc Projector Arc Projector [Rating: 20] Favorites ----------- Power Light Ion Engine Engine Light Ion Engine Power Core Light Nuclear Core Propulsion Flight Unit Treads Light Treads Wheel Compact Wheel Hover Unit Hover Unit Flight Unit Flight Unit Utility Hacking Suite Device ECM Suite Processor Signal Interpreter Hackware Hacking Suite Protection Improved Light Armor Plating Weapon Powered Hammer Energy Gun EM Pulse Gun Energy Cannon Advanced Beam Cannon Ballistic Gun Assault Rifle Launcher Mini Grenade Launcher Impact Weapon Powered Hammer Special Melee Weapon Datajack Build | -11 -10 -9 -8 ------- Run | Scr Mat Mat Mat Slots Evolved 4 | . . 2 2 Power 1 | . . . 1 Propulsion 1 | . . 1 . Utility 2 | . . 1 1 Weapon . | . . . . Parts Attached 46 | 7 8 19 12 Power 7 | 1 2 4 . Engine 6 | 1 2 3 . Core 1 | . . 1 . Reactor . | . . . . Propulsion 11 | 3 1 5 2 Treads 1 | . . 1 . Leg . | . . . . Wheel 4 | 3 1 . . Hover 2 | . . . 2 Flight 4 | . . 4 . Utility 11 | 1 2 4 4 Device 6 | 1 1 3 1 Storage . | . . . . Processor 2 | . . . 2 Hackware 2 | . 1 1 . Protection 1 | . . . 1 Artifact . | . . . . Weapon 17 | 2 3 6 6 Energy Gun 6 | 1 1 3 1 Energy Cannon 1 | . . 1 . Ballistic Gun 2 | 1 . 1 . Ballistic Cannon . | . . . . Launcher 3 | . 2 1 . Special Weapon . | . . . . Impact Weapon 4 | . . . 4 Slashing Weapon . | . . . . Piercing Weapon . | . . . . Special Melee Weapon 1 | . . . 1 Unidentified Prototypes 1 | . . 1 . Parts Lost 29 | . 5 10 14 Power 4 | . 1 2 1 Propulsion 9 | . 1 3 5 Utility 7 | . 1 1 5 Weapon 9 | . 2 4 3 Highest Loss Streak 9 | . 5 3 9 Average Slot Usage (%) 77 | . 94 86 45 Engine 7 | . 14 8 . Core 1 | . . 2 . Wheel 7 | . 27 3 . Flight 10 | . . 18 2 Device 14 | . 13 19 5 Processor 3 | . . . 12 Hackware 8 | . 10 11 . Protection 1 | . . . 3 Energy Gun 4 | . 6 4 2 Energy Cannon 2 | . . 4 . Ballistic Gun 6 | . 14 6 . Launcher 3 | . 7 4 . Impact Weapon 3 | . . . 12 Naked Turns 7 | . . . 7 Heaviest Build 12 | 8 11 12 12 Greatest Support 32 | 32 32 26 15 Greatest Overweight (x) 3 | 1 . 3 3 Average Overweight (x) . | . . . 1 Largest Inventory Capacity 4 | 4 4 4 4 Average Capacity 4 | 4 4 4 4 Most Carried 4 | 3 4 4 4 Average Carried 3 | 1 2 3 3 Final Capacity 4 | 4 4 4 4 Final Carried 4 | 3 3 4 4 Class Distribution -------------------- 69% | Mutant 30% | Scavenger-Mutant Dominant Class ---------------- Mutant | -10/Materials Scavenger-Mutant | -9/Materials Mutant | -8/Materials Resources | -11 -10 -9 -8 ----------- Run | Scr Mat Mat Mat Matter Collected 987 | 312 107 458 110 Remotely . | . . . . Salvage Created 1053 | 125 299 436 193 Parts 58 | 8 15 30 5 Haulers Intercepted 2 | . . 2 . Recyclers Shooed 3 | 1 1 1 . Parts Field Recycled . | . . . . Retrieved Matter . | . . . . Parts Self-Destructed . | . . . . Prevented . | . . . . Kills | -11 -10 -9 -8 ------- Run | Scr Mat Mat Mat Combat Hostiles Destroyed 21 | . 5 10 6 Guns 5 | . 2 3 . Cannons 3 | . . 3 . AOE 10 | . 3 4 3 Classes Destroyed 11 | 2 5 3 1 Worker 1 | . 1 . . Tunneler 3 | 2 . 1 . Hauler 2 | . . 2 . Recycler 2 | 1 1 . . Mechanic 1 | . 1 . . Operator 4 | . 2 1 1 Watcher 2 | . 1 1 . Swarmer 5 | . . 2 3 Grunt 12 | . 5 5 2 Duelist 1 | . . . 1 Sentry 3 | . . 3 . Best Kill Streak 6 | 1 6 2 3 Combat Bots Only 4 | . 4 2 3 Max Kills in Single Turn 3 | 1 2 1 3 Gunslinging . | . . . . Exploded 3 | . 1 1 3 Melee . | . . . . Uniques/NPCs Destroyed . | . . . . Combat | -11 -10 -9 -8 -------- Run | Scr Mat Mat Mat Damage Taken 2618 | . 497 824 1297 Core 899 | . 104 230 565 Absorbed by Shields . | . . . . Core Remaining (%) 66 | 100 58 42 . Volleys Fired 103 | 14 29 55 5 Largest 2 | 2 2 2 2 Hottest 110 | 60 85 110 110 Shots Fired 170 | 28 57 79 6 Gun 119 | 28 45 40 6 Cannon 22 | . . 22 . Launcher 29 | . 12 17 . Special . | . . . . Kinetic 74 | 14 29 31 . Thermal 34 | . 3 30 1 Explosive 29 | . 12 17 . Electromagnetic 33 | 14 13 1 5 Robot Hit Streak 14 | 6 14 13 2 Robot Miss Streak 5 | 5 3 3 2 Penetration Max . | . . . . Secondary Targets . | . . . . Shots Hit Robots 139 | 14 42 55 28 Core Hits 58 | 4 20 31 3 Critical Hits 2 | . . 2 . Critical Kills . | . . . . Critical Parts Destroyed 2 | . . 2 . Melee Attacks 32 | . . . 32 Impact 32 | . . . 32 Slashing . | . . . . Piercing . | . . . . Sneak Attacks 1 | . . . 1 Combat Hostiles . | . . . . Follow-up Attacks 3 | . . . 3 Damage Inflicted 3712 | 178 978 1193 1363 Guns 956 | 178 408 330 40 Cannons 267 | . . 267 . Explosions 1659 | . 570 596 493 Melee 830 | . . . 830 Ramming . | . . . . Kinetic 531 | 88 222 221 . Thermal 476 | . 117 359 . Explosive 1588 | . 499 596 493 Electromagnetic 287 | 90 140 17 40 Impact 830 | . . . 830 Slashing . | . . . . Piercing . | . . . . Highest Corruption . | . . . . Average Corruption . | . . . . Corruption Purged . | . . . . Overload Shots . | . . . . Overflow Damage 471 | . 2 15 454 Projectiles . | . . . . Explosions 322 | . 2 15 305 Melee 149 | . . . 149 Knockbacks 8 | . . . 8 Impact 8 | . . . 8 Kinetic . | . . . . Secondary . | . . . . Self-Inflicted Damage 379 | . 116 69 194 Shots 12 | . 5 5 2 Rammed . | . . . . Targets Rammed . | . . . . Kicked . | . . . . Crushed . | . . . . Highest Temperature 125 | . 125 87 34 Average Temperature 38 | . 51 25 19 Received Heat Transfer 1095 | . 210 291 594 Siege Activations . | . . . . Robots Corrupted 2 | . . . 2 Combat Hostiles 1 | . . . 1 Parts Fried 4 | 1 . . 3 Impact Corruptions 8 | . . . 8 Robots Melted . | . . . . Combat Hostiles . | . . . . Parts Melted . | . . . . Heat Transferred 864 | . 161 703 . Parts Sabotaged . | . . . . Parts Stolen . | . . . . Parts Stripped . | . . . . Power Chain Reactions 1 | . . 1 . Missiles Intercepted . | . . . . Alert | -11 -10 -9 -8 ------- Run | Scr Mat Mat Mat Peak Influence 293 | 15 181 293 135 Average Influence 127 | 5 97 172 97 Maximum Alert Level 1 | . . 1 . Low Security (%) 82 | 100 100 64 100 Level 1 17 | . . 35 . Level 2 . | . . . . Level 3 . | . . . . Level 4 . | . . . . Level 5 . | . . . . High Security . | . . . . Max Security . | . . . . Squads Dispatched 4 | . 2 1 1 Investigation 1 | . 1 . . Extermination . | . . . . Reinforcement 3 | . 1 1 1 Assault . | . . . . Garrison . | . . . . Intercept . | . . . . Construction Impeded . | . . . . Haulers Reinforced . | . . . . Stealth | -11 -10 -9 -8 --------- Run | Scr Mat Mat Mat Distress Signals 2 | . . . 2 Communications Jammed . | . . . . Distress Signals . | . . . . Times Spotted 52 | . 13 24 15 Peak Tracking Total 4 | . 3 4 4 Tactical Retreats 7 | . 1 5 1 Traps | -11 -10 -9 -8 ------- Run | Scr Mat Mat Mat Traps Triggered 1 | . 1 . . Indirectly . | . . . . Trap Hack Attempts . | . . . . Triggered . | . . . . Disarmed . | . . . . Reprogrammed . | . . . . Reused . | . . . . Traps Extracted . | . . . . Installed . | . . . . Triggered . | . . . . Machines | -11 -10 -9 -8 ---------- Run | Scr Mat Mat Mat Machines Disabled 5 | . 1 2 2 Max in Single Turn 2 | . 1 1 2 Machines Sabotaged . | . . . . Garrisons Compromised . | . . . . Overloaded Fab Kills . | . . . . Fab Network Shutdowns . | . . . . Hacking | -11 -10 -9 -8 --------- Run | Scr Mat Mat Mat Machines Accessed . | . . . . Terminals . | . . . . Fabricators . | . . . . Repair Stations . | . . . . Recycling Units . | . . . . Scanalyzers . | . . . . Garrison Access . | . . . . Total Hacks . | . . . . Successful . | . . . . Failed . | . . . . Catastrophic . | . . . . Database Lockouts . | . . . . Manual . | . . . . Terminals . | . . . . Fabricators . | . . . . Repair Stations . | . . . . Recycling Units . | . . . . Scanalyzers . | . . . . Garrison Access . | . . . . Terminal Hacks . | . . . . Fabricator Hacks . | . . . . Repair Station Hacks . | . . . . Recycling Unit Hacks . | . . . . Scanalyzer . | . . . . Garrison Access Hacks . | . . . . Unauthorized Hacks . | . . . . Terminals . | . . . . Fabricators . | . . . . Repair Stations . | . . . . Recycling Units . | . . . . Scanalyzers . | . . . . Garrison Access . | . . . . Data Cores Recovered 2 | . 1 1 . Used . | . . . . Hacking Detections . | . . . . Full Trace Events . | . . . . Feedback Events . | . . . . Feedback Blocked . | . . . . Robot Schematics Acquired . | . . . . Robots Built . | . . . . Matter . | . . . . Time . | . . . . Total Robot Build Rating . | . . . . Part Schematics Acquired . | . . . . Parts Built . | . . . . Matter . | . . . . Time . | . . . . Total Part Build Rating . | . . . . Parts Repaired . | . . . . Time . | . . . . Parts Recycled . | . . . . Recycled Matter . | . . . . Retrieved Matter . | . . . . Retrieved Components . | . . . . Parts Scanalyzed . | . . . . Part Schematics Acquired . | . . . . Parts Damaged . | . . . . Bothacking | -11 -10 -9 -8 ------------ Run | Scr Mat Mat Mat Used RIF Installer . | . . . . Robots Hacked . | . . . . Non-combat . | . . . . Combat . | . . . . Robot Hacks Applied . | . . . . Relay Couplers Released . | . . . . Robots Rewired . | . . . . Allies Hacked . | . . . . Hacks Repelled . | . . . . Allies | -11 -10 -9 -8 -------- Run | Scr Mat Mat Mat Total Allies . | . . . . Largest Group . | . . . . Highest-Rated Group . | . . . . Highest-Rated Ally . | . . . . Total Orders . | . . . . Ally Attacks . | . . . . Total Damage . | . . . . Kills . | . . . . Allies Corrupted . | . . . . Allies Melted . | . . . . Intel | -11 -10 -9 -8 ------- Run | Scr Mat Mat Mat Robot Analysis Total . | . . . . Derelict Logs Recovered . | . . . . Drone Launches . | . . . . Drone Recoveries . | . . . . Exploration | -11 -10 -9 -8 ------------- Run | Scr Mat Mat Mat Turns Passed 1724 | 148 312 857 407 Spaces Moved 981 | 98 213 411 259 Core 201 | 24 . 41 136 Treads 65 | . . 65 . Legs . | . . . . Wheels 407 | 74 213 120 . Hover 70 | . . . 70 Flight 238 | . . 185 53 Fastest Speed 34 | 50 90 34 34 Average Speed 91 | 92 93 80 105 Slowest Speed 220 | 100 100 220 200 Overloaded Moves . | . . . . Propulsion Burnouts . | . . . . Robots Hopped 1 | . . 1 . Cave-ins Triggered . | . . . . Exploration Rate (%) 25 | 6 45 40 11 Regions Visited 3 Branch Regions . Pre-discovered Areas . | . . . . Known Exits Taken . | . . . . Unknown Exits Taken 3 | 1 1 1 . Scrap Searched . | . . . . Spaces Dug . | . . . . Terrain Destroyed 225 | . 86 106 33 Melee . | . . . . Projectile . | . . . . AOE 225 | . 86 106 33 Actions | -11 -10 -9 -8 --------- Run | Scr Mat Mat Mat Total 1601 | 127 267 858 349 Wait 398 | . 9 354 35 Move 976 | 97 212 408 259 Hop 1 | . . 1 . Pick Up 37 | 9 7 13 8 Fast Attach 11 | . 1 7 3 Attach 27 | 6 5 9 7 Detach 1 | . . 1 . Swap 8 | 1 2 3 2 Drop 11 | . 2 7 2 Fire 103 | 14 29 55 5 Melee 28 | . . . 28 Ram . | . . . . Kick . | . . . . Crush . | . . . . Escape Stasis . | . . . . Rewire . | . . . . Trap . | . . . . Miscellaneous . | . . . . Route ------- -11/Scrapyard -10/Materials (discovered 2 exits: [*Mat] / [*Min]) -9/Materials (discovered 2 exits: [*Mat] / [*Min]) -8/Materials History --------- Turn | Location | Event 15 | -11/Scrapyard | Discovered new exit (range 15) 149 | -11/Scrapyard | Entered Materials 323 | -10/Materials | Build established: Mutant 330 | -10/Materials | Lost 5 parts (1p1n1u2w) 332 | -10/Materials | Discovered new exit (range 7) 445 | -10/Materials | Discovered new exit (range 9) 461 | -10/Materials | Entered another Materials area 461 | -9/Materials | Evolved 2 slots: Propulsion x1, Utility x1 647 | -9/Materials | Lost 3 parts (2n1w) 901 | -9/Materials | Discovered new exit (range 6) 1112 | -9/Materials | Discovered new exit (range 16) 1128 | -9/Materials | Build established: Scavenger-Mutant 1156 | -9/Materials | Core integrity fell below 50% 1318 | -9/Materials | Entered another Materials area 1318 | -8/Materials | Evolved 2 slots: Power x1, Utility x1 1385 | -8/Materials | Lost 9 parts (1p3n3u2w) 1483 | -8/Materials | Lost 3 parts (2n1w) 1665 | -8/Materials | Build established: Mutant 1693 | -8/Materials | Core integrity fell below 50% 1714 | -8/Materials | Core integrity fell below 20% 1725 | -8/Materials | Destroyed by G-47 Trooper with Particle Gun Last Messages --------------- 01638_ Acquired 20 matter. 01652_ Sneak attack on O-16 Technician. 01652_ Destroyed Hover Unit. 01652_ Destroyed Lgt. Ion Engine. 01652_ Destroyed Datajack. 01652_ Destroyed Hacking Suite. 01652_ O-16 Technician system corrupted by crushing effect. 01652_ O-16 Technician knocked back. 01653_ O-16 Technician system terminally corrupted. 01694_ Powered Hammer follow-up attack on G-47 Trooper. 01694_ G-47 Trooper knocked back. 01697_ Imp. Light Armor Plating destroyed. 01699_ Powered Hammer follow-up attack on G-47 Trooper. 01699_ G-47 Trooper knocked back. 01706_ G-47 Trooper destroyed. 01710_ Imp. Heat Sink destroyed. 01712_ G-47 Trooper knocked back. 01721_ U-05 Engineer builds a Door. 01722_ U-05 Engineer destroyed. 01723_ G-47 Trooper knocked back. Map ----- +----------------------------------------------------+ | ?????????????????????????????????????????????????? | | ?????????????????????????????????????????????????? | | ?????????????????????????????????????????????????? | | ?????????????????????????????????????????????????? | | ?????????????????????????????????????????????????? | | ?????????????????????????????????????????????????? | | ?????????????????????????????????????????????????? | | ?????????????????????????????????????????????????? | | ?????????????????????????????????????????????????? | | ?????????????????????????????????????????????????? | | ?????????????????????????????????????????????????? | | ?????????????????????????????????????????????????? | | ????????????????????##############???????????????? | | ????????????????????# # """ #???????????????? | | ????????????????????# # "T" #???????????????? | | ????????????????????# # ! #???????????????? | | ????????????????????# + ########????????? | | ????????????????????# # ##! #????????? | | ???????????########## # """ ## #?????#### | | ???????????# # # """ ## #?????# | | ???????????# """ # # """ ##""" #?????# " | | ???????????# """ # # ##""" #?????# " | | ???????????# """ # #####+#####""" ####### " | | ???????????# + g##### ##??# #% # | | ???????????# # g r#######+## # " | | ???????????# # @ |= T + " | | ???????????# "T" # % =%!########## % # " | | ???????????# # #####+## #????# # | | ???????????########## # #?#### % ###### | | ????????????????????# # #?# #????? | | ????????????????????# # # ## ! #????? | | ????????????????????# # ###[ !!#????? | | ????????????????????# # #########????? | | ????????????????????# # #????????????? | | ????????????????????# # ##????????????? | | ????????????????????# # #?????????????? | | ????????????????????# ############?????????????? | | ????????????????????/ #???######???????????????? | | ??????????????????? # #????????????????????????? | | ?????????????????? # #????????????????????????? | | ?????????????????? ?# #????????????????????????? | | ????????????????????? ?????????????????????????? | | ?????????????????????????????????????????????????? | | ?????????????????????????????????????????????????? | | ?????????????????????????????????????????????????? | | ?????????????????????????????????????????????????? | | ?????????????????????????????????????????????????? | | ?????????????????????????????????????????????????? | | ?????????????????????????????????????????????????? | | ?????????????????????????????????????????????????? | +----------------------------------------------------+ Best States ------------- Heat Dissipation 50 Energy Generation 14 Energy Capacity 250 Matter Stores 300 Matter Capacity 300 Sight Range 16 Terrain Scan Range 16 Terrain Scan Density 10 ECM Strength 1 Armor Coverage 150 Evasion (%) 63 Recoil Reduction 1 Salvage Targeting 2 Offensive Hacking 10 Item Schematics ----------------- None Robot Schematics ------------------ None Fabricated ------------ Nothing Alien Tech Used ----------------- None Achievements -------------- None Challenges ------------ None Game ------ Seed XenonCloakSuperbattery Manual? 0 Play Time 00:21:16 Cumulative 55.0 hours Start 2019.12.10 @ 14:19:33 End 2019.12.10 @ 14:39:00 Sessions 1 Manual Loads 0 Difficulty Rogue Special Mode None Game No. 87 Rogue 87 Adventurer 0 Explorer 0 Win Type - Total 0 Types 0/0/0/0/0/0/0 Lore% 22 Gallery% 25 Achievement% 23 Wizard Run 0 Options --------- ASCII 0 Keyboard 0 Movement Arrows Keybinds 0 Fullscreen 1 Font 18/SmallcapsGlow Map View 76x50 Tactical HUD 1 Map Filters NONE Filters LOW_CONTRAST(13,24,33)|BRIGHTNESS(120)|SATURATION(80) Steam 1 RUN: f1b98bbf-ee1c-4f9f-a89c-745e3f1943d1